bitfinex/quotes_SOLUSD_20251007
["timestamp","ask_amount","ask_price","bid_price","bid_amount"]
[1759855867636,1.8,224.96,224.95,36.26543231]
[1759855867836,0.72,225.01,224.95,53.34484705]
[1759855868339,0.72,225.0,224.95,21.52484705]
[1759855868542,0.72,224.99,224.97,4.44503711]
[1759855868744,0.72,224.99,224.98,31.82]
[1759855868918,132.9,225.03,224.98,31.82]
[1759855869126,0.72,225.01,224.98,31.82]
[1759855869327,0.72,225.0,224.98,31.82]
[1759855869710,0.72,224.99,224.98,36.26472872]
[1759855870621,133.62,225.03,224.98,36.26472872]
[1759855870828,133.12,225.03,224.98,36.26472872]
[1759855871034,0.72,225.02,224.98,36.26472872]
[1759855871226,132.4,225.03,224.98,36.26472872]
[1759855871227,0.72,225.01,224.98,36.26472872]
[1759855871944,132.4,225.03,224.99,0.11]
[1759855872249,0.08356131,225.06,225.0,31.82]
[1759855872456,0.08356131,225.06,225.01,0.11]
[1759855872630,0.08356131,225.06,225.02,31.93]
[1759855872946,0.08356131,225.06,225.03,31.82]
[1759855873124,0.08356131,225.06,225.03,31.93]
[1759855873328,0.08356131,225.06,225.04,0.11]
[1759855873638,0.08356131,225.06,225.05,31.82]
[1759855873963,0.08356131,225.06,225.05,36.263457]
[1759855874247,0.1,225.07,225.05,36.263457]
[1759855877241,0.72,225.11,225.05,47.37209952]
[1759855877450,25.2405394,225.2,225.05,47.37209952]
[1759855877621,3.30893839,225.19,225.05,47.37209952]
[1759855877841,3.30893839,225.18,225.05,47.37209952]
[1759855878034,3.30893839,225.17,225.05,47.37209952]
[1759855878231,2.41741024,225.22,225.08,20.8]
[1759855878535,0.1,225.22,225.12,20.8]
[1759855878752,0.1,225.22,225.16,20.8]
[1759855879127,0.1,225.22,225.17,31.82]
[1759855879331,0.72,225.21,225.18,31.82]
[1759855879545,0.72,225.21,225.13,20.8]
[1759855879546,0.72,225.2,225.13,20.8]
[1759855879745,0.72,225.19,225.14,31.82]
[1759855879960,0.72,225.18,225.14,31.82]
[1759855880152,0.1,225.22,225.14,31.82]
[1759855880333,0.1,225.22,225.14,32.49]
[1759855880658,0.1,225.22,225.14,31.82]
[1759855880837,0.1,225.22,225.21,1.94187056]
[1759855881039,0.1,225.22,225.21,33.76187056]
[1759855882033,0.1,225.22,225.17,7.76748224]
[1759855882034,4.54010301,225.22,225.17,7.76748224]
[1759855882256,4.54010301,225.22,225.21,1.94187056]
[1759855882462,4.54010301,225.22,225.21,33.76187056]
[1759855882636,5.26010301,225.22,225.21,33.76187056]
[1759855883561,5.26010301,225.22,225.21,31.82]
[1759855883757,5.26010301,225.22,225.21,33.76187056]
[1759855884342,5.26010301,225.22,225.21,31.82]
[1759855884543,5.26010301,225.22,225.21,33.76187056]
[1759855884749,16.36036053,225.22,225.08,21.47]
[1759855884955,4.44049733,225.2,225.09,32.49]
[1759855885172,0.72,225.19,225.06,8.43748224]
[1759855885368,15.54174066,225.2,225.06,8.43748224]
[1759855885369,15.54174066,225.2,225.18,1.94187056]
[1759855885657,26.41821587,225.2,225.19,20.44]
[1759855885863,27.13821587,225.2,225.19,20.44]
[1759855887257,0.1,225.22,225.19,3.73695623]
[1759855887437,0.1,225.22,225.21,23.83695623]
[1759855887633,0.1,225.27,225.22,20.8]
[1759855887859,0.1,225.27,225.26,3.03695623]
[1759855888078,0.1,225.27,225.26,38.09391246]
[1759855888263,2.31594463,225.36,225.26,38.79391246]
[1759855888439,13.4053404,225.38,225.28,3.03695623]
[1759855888638,0.67,225.36,225.34,3.03695623]
[1759855888837,4.4369716,225.38,225.35,32.02]
[1759855889038,25.2369716,225.38,225.36,32.02]
[1759855889270,47.20582412,225.38,225.37,32.02]
[1759855889463,26.40582412,225.38,225.37,32.02]
[1759855890049,26.40582412,225.38,225.24,4.43968957]
[1759855890050,10.87647521,225.37,225.24,0.7]
[1759855890272,28.4051182,225.34,225.21,0.7]
[1759855890441,3.97051831,225.33,225.22,32.02]
[1759855890643,3.97051831,225.32,225.26,7.6051182]
[1759855890851,3.97051831,225.31,225.27,32.02]
[1759855891051,4.43872342,225.29,225.26,7.6051182]
[1759855891261,0.67,225.28,225.27,32.02]
[1759855891649,0.67,225.28,225.27,39.6251182]
[1759855892163,0.67,225.28,225.27,32.0]
[1759855892787,4.43872342,225.29,225.27,39.6051182]
[1759855892978,4.43872342,225.29,225.28,7.6051182]
[1759855893281,5.10835407,225.31,225.28,7.6051182]
[1759855893479,0.67,225.3,225.28,7.6051182]
[1759855893881,21.47,225.32,225.29,7.6051182]
[1759855894074,25.23793547,225.33,225.29,7.6051182]
[1759855894281,0.67,225.3,225.29,7.6051182]
[1759855894468,0.67,225.3,225.28,7.6051182]
[1759855894883,36.33277415,225.33,225.28,7.6051182]
[1759855895069,4.43832941,225.31,225.28,7.6051182]
[1759855895385,0.67,225.3,225.28,7.6051182]
[1759855895775,0.67,225.29,225.27,32.0]
[1759855895965,0.67,225.29,225.27,39.6051182]
[1759855896168,4.43876119,225.29,225.27,39.6051182]
[1759855896575,4.43876119,225.29,225.28,31.96]
[1759855896983,5.10876119,225.29,225.23,0.7]
[1759855897280,5.10876119,225.29,225.24,31.96]
[1759855897694,5.10876119,225.29,225.24,32.66]
[1759855898183,5.10876119,225.29,225.24,31.96]
[1759855898596,13.48445702,225.38,225.25,0.7]
[1759855898597,20.8,225.34,225.25,0.7]
[1759855898776,4.43734469,225.36,225.25,0.7]
[1759855899468,23.14080467,225.36,225.25,0.7]
[1759855899686,0.68,225.35,225.25,0.7]
[1759855900075,5.11763717,225.35,225.25,5.13936058]
[1759855900264,5.11763717,225.35,225.26,0.71]
[1759855901970,5.11763717,225.35,225.26,5.14928922]
[1759855902170,5.11763717,225.35,225.27,0.71]
[1759855902578,7.61009825,225.33,225.24,31.96]
[1759855902776,4.4373408,225.37,225.25,0.71]
[1759855903377,0.68,225.36,225.25,0.71]
[1759855904089,4.4375416,225.35,225.25,5.14948399]
[1759855904284,4.4375416,225.35,225.26,0.71]
[1759855905389,4.4375416,225.35,225.26,5.1491702]
[1759855905688,4.43731682,225.37,225.27,0.71]
[1759855905892,0.68,225.36,225.27,0.71]
[1759855906777,4.4375416,225.35,225.27,0.71]
[1759855907294,4.4375416,225.35,225.27,5.14911737]
[1759855907891,4.4375416,225.35,225.25,4.43934658]
[1759855908084,4.4375416,225.35,225.28,0.71]
[1759855908993,0.68,225.34,225.28,0.71]
[1759855909198,5.11775477,225.34,225.25,4.43949225]
[1759855909399,0.68,225.33,225.22,0.71]
[1759855909701,0.68,225.33,225.23,31.86]
[1759855909890,0.68,225.32,225.23,31.86]
[1759855910281,0.68,225.31,225.24,31.86]
[1759855910584,4.4385264,225.3,225.24,31.86]
[1759855912193,5.1185264,225.3,225.23,0.71]
[1759855912494,5.1185264,225.3,225.24,31.84]
[1759855912999,0.68,225.29,225.24,31.84]
[1759855913198,0.68,225.28,225.17,0.71]
[1759855913378,3.71197356,225.28,225.18,31.84]
[1759855913576,0.68,225.27,225.18,31.84]
[1759855913777,0.68,225.27,225.19,0.71]
[1759855914387,20.8,225.29,225.19,0.71]
[1759855914595,21.48,225.29,225.19,0.71]
[1759855915301,4.43892045,225.28,225.19,5.15065759]
[1759855915497,0.68,225.29,225.2,0.71]
[1759855916497,4.43811767,225.33,225.2,0.71]
[1759855916981,0.68,225.34,225.22,20.8]
[1759855917312,24.2842709,225.39,225.22,20.8]
[1759855917313,0.67,225.37,225.23,16.20967055]
[1759855917621,0.67,225.37,225.24,32.51]
[1759855917909,0.67,225.37,225.25,0.67]
[1759855919192,4.43734469,225.36,225.26,4.43931456]
[1759855919406,4.43734469,225.36,225.27,0.67]
[1759855919786,5.10734469,225.36,225.27,0.67]
[1759855920190,0.67,225.36,225.27,0.67]
[1759855921188,5.10743287,225.36,225.27,5.10897237]
[1759855921396,5.10743287,225.36,225.28,0.67]
[1759855921805,5.10743287,225.36,225.26,0.67]
[1759855922207,8.13940643,225.36,225.27,31.8]
[1759855922385,0.67,225.35,225.27,31.8]
[1759855922588,0.67,225.34,225.23,0.67]
[1759855922889,23.83197356,225.33,225.21,0.67]
[1759855923082,0.67,225.32,225.22,31.8]
[1759855923414,5.10832941,225.31,225.23,0.67]
[1759855925008,5.10832941,225.31,225.22,31.8]
[1759855925205,4.43872342,225.29,225.22,31.8]
[1759855925384,0.67,225.28,225.22,31.8]
[1759855925785,0.67,225.28,225.2,5.1104955]
[1759855925786,132.4,225.27,225.2,4.4404955]
[1759855926020,132.4,225.26,225.2,4.4404955]
[1759855926887,133.07,225.26,225.21,31.8]
[1759855927218,132.4,225.26,225.22,31.8]
[1759855927515,132.4,225.26,225.23,31.8]
[1759855928303,133.07,225.26,225.23,31.8]
[1759855928586,132.4,225.26,225.23,31.8]
[1759855929405,133.07,225.25,225.24,31.8]
[1759855929605,0.67,225.25,225.24,31.8]
[1759855930093,0.67,225.27,225.24,31.8]
[1759855930911,4.4385264,225.3,225.24,31.8]
[1759855931110,0.67,225.29,225.24,31.8]
[1759855931294,0.67,225.28,225.24,31.8]
[1759855931500,0.67,225.27,225.24,31.8]
[1759855932106,4.43903668,225.28,225.24,31.8]
[1759855932301,0.67,225.26,225.24,31.8]
[1759855932495,0.67,225.25,225.24,31.8]
[1759855932899,3.98695979,225.25,225.24,31.8]
[1759855933404,3.98695979,225.25,225.17,5.11107297]
[1759855933599,3.98695979,225.24,225.18,31.8]
[1759855933799,3.31695979,225.23,225.19,32.47]
[1759855934028,3.31695979,225.22,225.2,0.67]
[1759855934320,136.21695979,225.21,225.19,31.8]
[1759855934493,132.9,225.21,225.19,31.8]
[1759855934893,132.9,225.21,225.2,0.67]
[1759855935100,136.21641731,225.21,225.2,0.67]
[1759855935902,136.21641731,225.21,225.19,31.8]
[1759855936105,132.9,225.21,225.19,32.47]
[1759855936311,3.3157804,225.2,225.19,32.47]
[1759855936819,3.3157804,225.2,225.19,31.8]
[1759855937128,3.9857804,225.2,225.15,34.62]
[1759855937304,136.8857804,225.19,225.16,31.8]
[1759855937619,3.3157804,225.18,225.16,31.8]
[1759855937792,3.3157804,225.17,225.16,31.8]
[1759855937994,3.3157804,225.17,225.15,34.62]
[1759855937995,3.3156278,225.17,225.15,34.62]
[1759855938196,132.9,225.19,225.15,35.29]
[1759855938419,3.3145602,225.18,225.16,31.8]
[1759855938617,3.3145602,225.17,225.16,31.8]
[1759855939712,3.3145602,225.18,225.16,31.8]
[1759855939916,3.3145602,225.17,225.16,31.8]
[1759855940119,3.3145602,225.18,225.16,31.8]
[1759855940323,3.3145602,225.17,225.16,31.8]
[1759855940617,3.3145602,225.18,225.16,31.8]
[1759855940821,132.9,225.19,225.15,35.29]
[1759855940822,3.31291911,225.17,225.15,34.62]
[1759855941019,132.9,225.19,225.15,34.62]
[1759855941020,132.9,225.19,225.16,31.8]
[1759855941206,3.31301631,225.18,225.16,31.8]
[1759855941411,136.21301631,225.17,225.16,31.8]
[1759855942618,136.21301631,225.17,225.16,32.47]
[1759855942817,132.9,225.17,225.16,36.91128619]
[1759855943708,132.9,225.17,225.16,32.47]
[1759855943909,11.09896237,225.25,225.16,31.8]
[1759855944116,0.67,225.21,225.16,31.8]
[1759855944320,24.62256121,225.25,225.16,31.8]
[1759855944321,3.98014283,225.2,225.16,31.8]
[1759855944519,3.31014283,225.19,225.15,34.62]
[1759855944717,3.31014283,225.19,225.17,31.8]
[1759855945422,0.67,225.22,225.17,31.8]
[1759855945730,3.30926639,225.21,225.17,32.47]
[1759855946029,3.30926639,225.2,225.17,32.47]
[1759855946232,3.30926639,225.19,225.17,32.47]
[1759855946415,5.11019187,225.22,225.17,32.47]
[1759855946618,3.30879259,225.21,225.17,32.47]
[1759855946836,3.30879259,225.2,225.17,32.47]
[1759855947007,3.30884078,225.19,225.17,31.8]
[1759855947211,0.71,225.18,225.15,34.62]
[1759855947412,3.30889252,225.17,225.16,31.8]
[1759855947828,4.44019187,225.22,225.16,32.45]
[1759855947829,0.71,225.22,225.16,32.45]
[1759855948124,3.30867839,225.21,225.16,31.8]
[1759855948326,3.30867839,225.2,225.15,34.62]
[1759855948533,136.20867839,225.19,225.17,0.65]
[1759855948828,132.9,225.18,225.17,0.65]
[1759855949731,132.9,225.18,225.16,31.8]
[1759855949916,132.9,225.18,225.16,32.45]
[1759855950706,132.9,225.18,225.16,31.8]
[1759855950912,132.9,225.18,225.17,0.65]
[1759855951525,0.71,225.28,225.17,0.65]
[1759855951720,97.8185612,225.27,225.18,31.8]
[1759855951924,3.30778596,225.26,225.19,0.65]
[1759855952234,3.30778596,225.25,225.19,0.65]
[1759855952426,3.30778596,225.24,225.19,0.65]
[1759855952628,94.51077524,225.27,225.19,0.65]
[1759855952811,3.30822221,225.26,225.2,4.44049733]
[1759855953130,3.30822221,225.25,225.21,31.8]
[1759855953324,3.3086618,225.24,225.21,32.45]
[1759855953521,0.71,225.23,225.18,4.44079761]
[1759855953722,0.71,225.23,225.19,31.8]
[1759855954115,4.01892196,225.22,225.15,34.62]
[1759855954315,3.30892196,225.21,225.16,31.8]
[1759855954515,3.30892196,225.2,225.16,31.8]
[1759855954716,3.30892196,225.2,225.17,0.65]
[1759855955024,98.95069019,225.23,225.18,31.8]
[1759855955226,98.53073309,225.22,225.18,31.8]
[1759855955530,3.30995785,225.21,225.18,31.8]
[1759855955733,3.30995785,225.21,225.18,32.45]
[1759855956104,20.8,225.23,225.18,32.45]
[1759855956303,4.02000617,225.22,225.18,31.8]
[1759855956546,4.02000617,225.21,225.18,31.8]
[1759855956707,3.31000617,225.2,225.18,31.8]
[1759855956908,7.7505035,225.2,225.19,31.84]
[1759855957105,7.7505035,225.2,225.13,0.65]
[1759855957333,3.31000617,225.19,225.14,31.84]
[1759855957521,4.02000617,225.19,225.14,31.84]
[1759855957726,3.31000617,225.18,225.14,32.49]
[1759855958039,0.71,225.17,225.11,0.65]
[1759855958217,0.71,225.17,225.12,31.84]
[1759855958416,0.71,225.17,225.12,32.49]
[1759855958617,0.71,225.17,225.13,0.65]
[1759855959019,0.71,225.19,225.13,0.65]
[1759855959312,3.31027876,225.18,225.13,0.65]
[1759855959513,4.02027876,225.18,225.13,0.65]
[1759855959726,0.71,225.18,225.13,0.65]
[1759855961242,94.51077524,225.17,225.13,4.44187741]
[1759855961448,4.44055434,225.2,225.13,4.44187741]
[1759855961449,94.51077524,225.16,225.13,5.09187741]
[1759855961814,94.51077524,225.15,225.13,5.09187741]
[1759855964239,94.51077524,225.15,225.13,4.44187741]
[1759855964531,94.51077524,225.15,225.13,0.65]
[1759855964730,94.51077524,225.15,225.14,0.65]
[1759855965931,1.94257029,225.24,225.14,0.65]
[1759855965932,4.43982583,225.24,225.14,0.65]
[1759855966237,3.31168729,225.22,225.15,36.24134285]
[1759855966420,3.31168729,225.21,225.16,0.65]
[1759855966630,0.71,225.26,225.16,0.65]
[1759855966844,3.31257047,225.25,225.16,0.65]
[1759855967017,4.02257047,225.24,225.16,0.65]
[1759855967220,3.31257047,225.23,225.14,4.44167554]
[1759855967441,3.31257047,225.22,225.15,31.8]
[1759855967646,4.02257047,225.21,225.15,31.8]
[1759855967938,3.31257047,225.2,225.15,31.8]
[1759855968136,4.02257047,225.19,225.15,31.8]
[1759855968337,4.02257047,225.18,225.13,5.09187543]
[1759855968513,3.31257047,225.17,225.16,31.8]
[1759855968715,3.31257047,225.17,225.13,5.09187543]
[1759855968716,3.31257047,225.17,225.13,0.65]
[1759855968913,3.31257047,225.16,225.14,31.8]
[1759855969129,5.15069786,225.19,225.1,4.44247001]
[1759855969343,3.31523815,225.18,225.11,32.45]
[1759855969529,3.31523815,225.17,225.11,32.45]
[1759855969837,3.31523815,225.16,225.12,0.65]
[1759855970040,25.24052033,225.2,225.02,6.38881801]
[1759855970233,5.15159066,225.15,225.07,0.65]
[1759855970432,3.31535777,225.14,225.07,0.65]
[1759855970632,4.02535777,225.13,225.07,0.65]
[1759855970836,3.31535777,225.12,225.07,0.65]
[1759855971144,3.31630753,225.11,225.08,31.8]
[1759855971318,3.31630753,225.1,225.08,31.8]
[1759855971518,0.71,225.11,225.08,31.8]
[1759855971733,3.31585383,225.1,225.08,31.8]
[1759855971944,0.71,225.1,225.08,31.8]
[1759855972352,3.3154544,225.09,225.05,35.27]
[1759855972527,0.71,225.11,225.06,31.8]
[1759855972726,3.31526117,225.1,225.06,31.8]
[1759855972934,3.3152598,225.09,225.06,32.45]
[1759855973222,0.71,225.08,225.05,34.62]
[1759855973424,0.71,225.11,225.06,31.8]
[1759855973628,4.02479705,225.1,225.06,31.8]
[1759855973822,3.31479705,225.09,225.06,31.8]
[1759855974050,3.31479705,225.08,225.06,31.8]
[1759855974230,25.24207227,225.13,225.05,34.62]
[1759855974231,4.02401262,225.07,225.05,34.62]
[1759855974553,0.71,225.07,225.06,31.8]
[1759855974734,4.02425889,225.07,225.06,31.8]
[1759855976545,4.0223467,225.07,225.06,31.8]
[1759855977231,8.43543576,225.07,225.06,31.82]
[1759855977431,29.23543576,225.07,225.06,31.82]
[1759855977631,34.59463289,225.07,225.06,31.82]
[1759855977932,38.13249833,225.07,225.06,31.82]
[1759855978339,42.5731172,225.07,225.06,31.82]
[1759855980648,38.13005505,225.07,225.06,31.82]
[1759855981036,42.5731172,225.07,225.06,31.82]
[1759855981638,20.8,225.04,225.0,31.82]
[1759855981959,45.69981809,225.07,225.0,31.82]
[1759855981960,20.8,225.01,225.0,31.82]
[1759855982130,3.98990342,225.01,225.0,31.82]
[1759855982335,24.78990342,225.01,225.0,31.82]
[1759855982533,3.30990342,225.01,225.0,31.82]
[1759855982863,3.30990342,225.02,225.0,31.82]
[1759855983266,3.98990342,225.02,225.0,31.82]
[1759855983579,136.20990342,225.01,225.0,31.82]
[1759855983759,136.88990342,225.01,225.0,31.82]
[1759855984773,141.33415034,225.01,225.0,31.82]
[1759855984974,20.8,224.97,224.96,0.2]
[1759855985174,24.10990342,224.97,224.96,0.2]
[1759855985365,3.30990342,224.97,224.96,0.2]
[1759855985553,16.65598968,224.97,224.96,0.2]
[1759855986368,13.34608626,224.97,224.96,0.2]
[1759855986591,16.64137865,224.97,224.96,0.2]
[1759855986869,17.32137865,224.97,224.96,0.2]
[1759855987069,16.64137865,224.97,224.96,0.2]
[1759855987269,21.76641576,224.97,224.96,0.2]
[1759855988083,16.64137865,224.97,224.96,0.2]
[1759855988268,34.14608626,224.97,224.96,0.2]
[1759855988470,34.58149855,224.97,224.96,0.2]
[1759855989460,32.63892826,224.97,224.96,0.2]
[1759855989861,34.58149855,224.97,224.96,0.2]
[1759855990485,21.08245305,224.97,224.96,0.2]
[1759855990787,41.88245305,224.97,224.96,0.2]
[1759855991362,13.34608626,224.97,224.96,0.86]
[1759855992075,34.57572552,224.97,224.96,0.2]
[1759855993270,34.57572552,224.97,224.96,1e-08]
[1759855995070,33.89572552,224.97,224.96,1e-08]
[1759855995270,132.49999999,224.92,224.91,0.66]
[1759855995474,20.8,224.95,224.91,0.66]
[1759855995475,20.8,224.94,224.91,31.9]
[1759855995690,21.48,224.94,224.91,31.9]
[1759855995986,21.48,224.94,224.9,0.2]
[1759855995987,1.94257029,224.92,224.9,0.2]
[1759855996179,5.22375022,224.91,224.9,0.2]
[1759855996363,0.68,225.05,224.9,0.2]
[1759855996568,26.28505018,225.14,224.9,4.64642063]
[1759855996569,3.27864812,225.04,224.9,4.64642063]
[1759855996869,3.27864812,225.03,224.91,0.66]
[1759855997070,3.27864812,225.03,224.92,15.56108838]
[1759855997275,3.27864812,225.03,224.93,0.66]
[1759855997465,13.34252485,225.04,224.93,0.66]
[1759855998989,3.28028125,225.03,224.94,4.44562994]
[1759855999192,3.28028125,225.03,224.95,0.66]
[1759855999378,3.28028125,225.03,224.96,32.0]
[1759855999581,3.28028125,225.03,224.97,0.66]
[1759856000395,7.72417562,225.03,224.97,0.66]
[1759856000592,3.28028125,225.02,224.96,32.0]
[1759856001178,0.68,225.01,224.96,32.0]
[1759856001486,24.76028125,225.0,224.96,32.0]
[1759856001793,24.76028125,224.99,224.96,32.0]
[1759856001993,4.44389437,225.0,224.96,32.0]
[1759856001994,24.76028125,224.98,224.96,32.0]
[1759856002174,19.28179357,224.97,224.9,32.18]
[1759856002379,3.28028125,224.96,224.9,32.18]
[1759856002684,20.8,224.92,224.9,32.18]
[1759856003297,20.8,224.91,224.9,32.18]
[1759856003675,21.48,224.91,224.9,32.18]
[1759856004193,29.2114708,224.91,224.9,32.18]
[1759856004391,29.2114708,224.91,224.9,0.2]
[1759856004606,45.247021,224.91,224.9,0.2]
[1759856004977,40.08794601,224.91,224.9,0.2]
[1759856005379,35.64172308,224.91,224.9,0.2]
[1759856005921,40.08794601,224.91,224.9,0.2]
[1759856006382,35.64172308,224.91,224.9,0.2]
[1759856006581,40.08794601,224.91,224.9,0.2]
[1759856006794,45.247021,224.91,224.9,0.2]
[1759856007183,40.08794601,224.91,224.9,0.2]
[1759856007382,45.247021,224.91,224.9,0.2]
[1759856007693,40.08794601,224.91,224.9,0.2]
[1759856009078,72.02794601,224.91,224.9,0.2]
[1759856010085,40.08794601,224.91,224.9,0.2]
[1759856010596,72.02794601,224.91,224.9,0.2]
[1759856011608,14.16172308,224.91,224.9,0.2]
[1759856014701,18.60992089,224.91,224.9,0.2]
[1759856015100,23.71614382,224.91,224.9,0.2]
[1759856016918,47.92269814,224.91,224.9,0.2]
[1759856017219,54.19100622,224.91,224.9,0.2]
[1759856017398,50.89122579,224.91,224.9,0.2]
[1759856017596,43.47647521,224.91,224.9,0.2]
[1759856017806,50.89197562,224.91,224.9,0.2]
[1759856020428,10.87647521,224.9,224.82,0.66]
[1759856020750,10.87647521,224.94,224.82,5.10788247]
[1759856020936,10.87647521,224.94,224.83,0.66]
[1759856021132,10.87647521,224.92,224.83,0.66]
[1759856021449,3.30373695,224.91,224.83,0.66]
[1759856021636,3.30373695,224.9,224.83,0.66]
[1759856021946,3.30373695,224.89,224.83,5.10773763]
[1759856022156,3.30373695,224.88,224.84,0.66]
[1759856022323,11.59647521,224.92,224.85,0.66]
[1759856022527,10.87647521,224.92,224.85,0.66]
[1759856023743,20.8,224.93,224.85,0.66]
[1759856023947,10.87647521,224.97,224.86,31.94]
[1759856024125,20.8,224.94,224.87,0.66]
[1759856024652,11.59647521,224.97,224.87,0.66]
[1759856025144,20.8,224.94,224.87,0.66]
[1759856025830,20.8,224.94,224.87,5.10690046]
[1759856026021,20.8,224.94,224.88,0.66]
[1759856027061,20.8,224.95,224.88,0.66]
[1759856027429,0.72,224.98,224.88,0.66]
[1759856027751,21.52,224.98,224.89,4.44661834]
[1759856028134,20.8,224.98,224.9,0.66]
[1759856029046,2.31962743,224.97,224.9,0.66]
[1759856031147,0.72,224.96,224.9,0.66]
[1759856031459,21.52,224.96,224.91,31.88]
[1759856031659,0.72,224.95,224.91,31.88]
[1759856031951,0.72,224.94,224.91,39.51321425]
[1759856032129,0.72,224.93,224.91,39.51321425]
[1759856032328,0.72,224.92,224.9,7.63321425]
[1759856032544,20.8,224.94,224.9,7.63321425]
[1759856032545,0.72,224.91,224.9,7.63321425]
[1759856033745,0.72,224.91,224.87,31.86]
[1759856034350,9.95284168,224.97,224.9,7.63321425]
[1759856034351,2.31962743,224.97,224.9,7.63321425]
[1759856034559,3.31287429,224.96,224.95,7.63321425]
[1759856034739,4.03287429,224.96,224.95,7.63321425]
[1759856035546,4.03287429,224.96,224.89,0.66]
[1759856035851,3.31287429,224.95,224.89,0.66]
[1759856036061,0.72,224.96,224.94,7.63321425]
[1759856036257,4.03282737,224.95,224.89,0.66]
[1759856036450,24.11282737,224.94,224.84,0.66]
[1759856036651,3.97282737,224.93,224.85,31.94]
[1759856036956,3.31282737,224.92,224.85,31.94]
[1759856037155,3.31282737,224.91,224.89,7.63321425]
[1759856037343,3.31282737,224.9,224.89,7.63321425]
[1759856037741,3.31282737,224.9,224.85,39.57321425]
[1759856038060,3.31282737,224.89,224.86,0.7]
[1759856038257,3.31282737,224.88,224.86,8.33321425]
[1759856038456,0.66,224.91,224.86,8.33321425]
[1759856038631,3.31316414,224.9,224.86,8.33321425]
[1759856038830,3.31316414,224.89,224.86,8.33321425]
[1759856039057,3.31316414,224.88,224.86,8.33321425]
[1759856039359,0.66,224.91,224.86,8.33321425]
[1759856039533,3.31310644,224.9,224.86,8.33321425]
[1759856039737,3.31310644,224.89,224.86,8.33321425]
[1759856040565,3.31310644,224.88,224.86,8.33321425]
[1759856040745,3.31310644,224.87,224.86,0.7]
[1759856041151,3.31310644,224.89,224.86,0.7]
[1759856041362,3.31310644,224.88,224.85,31.94]
[1759856041535,3.97310644,224.88,224.85,31.94]
[1759856041748,3.31310644,224.87,224.86,0.7]
[1759856041948,20.8,224.94,224.86,8.33321425]
[1759856042176,24.11255469,224.93,224.89,7.63321425]
[1759856042470,3.31255469,224.92,224.89,7.63321425]
[1759856042649,3.31255469,224.91,224.9,0.7]
[1759856042858,3.31255469,224.91,224.9,8.33321425]
[1759856044464,3.31255469,224.91,224.9,0.7]
[1759856045440,3.31255469,224.91,224.88,2.0]
[1759856045641,3.31255469,224.9,224.89,8.33321425]
[1759856046067,132.9,224.89,224.88,2.0]
[1759856046256,136.21255469,224.89,224.88,33.9]
[1759856046746,24.77255469,224.89,224.88,33.9]
[1759856046947,32.40991777,224.89,224.88,33.9]
[1759856047149,43.28639298,224.89,224.88,33.9]
[1759856047368,43.28639298,224.89,224.88,2.0]
[1759856047672,46.27454604,224.89,224.84,31.9]
[1759856047848,27.76070775,224.88,224.84,31.9]
[1759856048047,10.94991777,224.87,224.84,31.9]
[1759856048265,3.31255469,224.86,224.84,31.9]
[1759856048564,3.31255469,224.85,224.84,31.9]
[1759856050367,11.60991777,224.85,224.84,31.9]